bitfinex-derivatives/quotes_SOLF0:USTF0_20241021
["timestamp","ask_amount","ask_price","bid_price","bid_amount"]
[1729530000618,4.78,164.71,164.61,1.251]
[1729530000909,3.0376,164.68,164.61,1.251]
[1729530001110,6.10589036,164.68,164.61,1.251]
[1729530001418,3.0376,164.68,164.61,1.251]
[1729530001911,6.09946189,164.68,164.65,3.038]
[1729530002118,3.0376,164.68,164.65,3.038]
[1729530002414,4.78,164.67,164.65,3.038]
[1729530002715,7.8177,164.67,164.64,3.0381]
[1729530003108,4.78,164.67,164.61,1.251]
[1729530003307,2.5891,164.75,164.61,1.251]
[1729530003506,4.78,164.74,164.61,1.251]
[1729530003713,3.0368,164.72,164.69,3.0373]
[1729530003911,4.78,164.74,164.62,4.78]
[1729530004319,3.0371,164.71,164.67,3.0376]
[1729530004618,4.78,164.7,164.67,3.0376]
[1729530004920,7.8746871,164.7,164.67,3.0376]
[1729530005420,7.8746871,164.7,164.68,3.0375]
[1729530007212,7.8746871,164.7,164.62,4.78]
[1729530007411,7.8746871,164.7,164.68,3.0375]
[1729530008411,7.8746871,164.7,164.62,4.78]
[1729530008611,7.8746871,164.7,164.61,1.251]
[1729530009214,3.0378,164.67,164.63,3.0383]
[1729530009413,4.78,164.66,164.6,1.3572]
[1729530010021,4.78,164.66,164.62,3.0386]
[1729530011014,3.0384,164.64,164.6,3.0389]
[1729530012420,3.0384,164.64,164.61,3.0388]
[1729530014217,4.78,164.66,164.55,7.3895]
[1729530014416,3.0377,164.67,164.55,7.3895]
[1729530014614,4.78,164.66,164.55,7.3895]
[1729530015217,3.0375,164.68,164.65,3.038]
[1729530015420,3.0375,164.68,164.56,6.0795]
[1729530015421,4.78,164.67,164.56,6.0795]
[1729530015620,4.78,164.67,164.57,1.51989393]
[1729530015826,4.78,164.67,164.66,3.0379]
[1729530016320,3.0946871,164.7,164.66,3.0379]
[1729530016524,4.78,164.67,164.66,3.0379]
[1729530016724,7.84747037,164.67,164.66,3.0379]
[1729530017431,7.84747037,164.67,164.57,6.0789]
[1729530017726,7.84747037,164.67,164.65,3.038]
[1729530021032,7.84747037,164.67,164.65,4.038]
[1729530021827,7.84747037,164.67,164.65,2.0]
[1729530022025,7.84747037,164.67,164.65,3.0]
[1729530022427,7.84747037,164.67,164.65,4.0]
[1729530022823,7.84747037,164.67,164.65,5.0]
[1729530023023,7.84747037,164.67,164.65,8.0381]
[1729530023424,7.84747037,164.67,164.65,9.0381]
[1729530024030,7.84747037,164.67,164.65,6.0]
[1729530024231,7.84747037,164.67,164.65,7.0]
[1729530024730,7.84747037,164.67,164.65,8.0]
[1729530024931,7.84747037,164.67,164.64,3.0382]
[1729530025525,7.84747037,164.67,164.65,1.0]
[1729530026430,7.84747037,164.67,164.65,4.038]
[1729530029428,7.84747037,164.67,164.65,1.0]
[1729530030227,3.0379,164.66,164.65,1.0]
[1729530030930,3.0379,164.66,164.57,107.1368191]
[1729530031520,3.0379,164.66,164.65,1.0]
[1729530034326,10.88527037,164.67,164.65,1.0]
[1729530037137,10.88527037,164.67,164.64,3.0381]
[1729530037537,10.88527037,164.67,164.65,1.0]
[1729530037942,7.84747037,164.67,164.65,4.0381]
[1729530040132,4.78,164.67,164.66,3.0379]
[1729530040330,2.655,164.74,164.65,1.0]
[1729530040538,4.76,164.73,164.65,1.0]
[1729530041737,7.7968,164.73,164.67,3.0376]
[1729530041939,7.7968,164.73,164.65,1.0]
[1729530042342,7.7968,164.73,164.69,3.0372]
[1729530042640,4.76,164.73,164.65,1.0]
[1729530042838,7.7966,164.73,164.69,3.0372]
[1729530044342,3.0369,164.72,164.69,3.0372]
[1729530046146,3.0369,164.72,164.64,1.0]
[1729530046353,3.0369,164.72,164.68,3.0374]
[1729530046543,3.0369,164.72,164.64,1.0]
[1729530046847,3.0369,164.72,164.68,3.0374]
[1729530055058,3.0369,164.72,164.7,1.0]
[1729530059458,3.037,164.71,164.7,1.0]
[1729530060462,23.0,164.73,164.61,3.9005]
[1729530060653,23.0,164.73,164.61,1.2956]
[1729530060966,21.277,164.71,164.7,1.0]
[1729530061162,18.24,164.71,164.63,3.0384]
[1729530061363,1.3332,164.7,164.57,104.9866191]
[1729530061566,3.0384,164.63,164.57,104.9866191]
[1729530061764,18.24,164.68,164.57,104.9866191]
[1729530061765,4.76,164.62,164.57,104.9866191]
[1729530062267,3.0667711,164.61,164.57,104.9866191]
[1729530062665,3.0667711,164.61,164.57,3.9287]
[1729530063062,4.76,164.62,164.57,3.9287]
[1729530064071,4.76,164.62,164.58,3.0393]
[1729530064372,4.76,164.62,164.47,4.76]
[1729530064568,4.76,164.62,164.57,3.0395]
[1729530065370,3.0389,164.61,164.56,3.0396]
[1729530065570,6.09336514,164.61,164.56,3.0396]
[1729530066974,3.05446514,164.61,164.58,3.0393]
[1729530067175,7.7988,164.62,164.58,3.0393]
[1729530067877,65.64,164.66,164.6,3.039]
[1729530068072,4.76,164.65,164.6,3.039]
[1729530068469,4.76,164.65,164.53,2.6028]
[1729530068470,65.64,164.66,164.53,2.6028]
[1729530068679,4.76,164.65,164.61,3.0387]
[1729530069375,3.0384,164.63,164.61,3.0387]
[1729530069565,4.76,164.65,164.53,2.6028]
[1729530069767,65.64,164.66,164.53,2.6028]
[1729530069973,4.76,164.65,164.53,2.6028]
[1729530070173,4.76,164.67,164.53,2.6028]
[1729530070369,4.76,164.67,164.54,1.52018226]
[1729530070573,4.76,164.67,164.66,3.0379]
[1729530071579,4.76,164.69,164.68,3.0374]
[1729530071778,4.76,164.69,164.6,3.947]
[1729530072278,4.76,164.69,164.68,3.0375]
[1729530075388,3.04550151,164.7,164.68,3.0375]
[1729530075686,4.76,164.7,164.68,3.0375]
[1729530075885,7.72788864,164.7,164.68,3.0375]
[1729530076281,7.72788864,164.7,164.69,3.0373]
[1729530079989,2.96788864,164.7,164.69,3.0373]
[1729530080195,65.66,164.74,164.71,3.0368]
[1729530080383,3.07908854,164.79,164.63,4.76]
[1729530080583,3.0359,164.77,164.64,6.0764]
[1729530080784,3.00296233,164.77,164.73,3.0365]
[1729530081087,4.76,164.78,164.73,3.0365]
[1729530081482,3.0359,164.77,164.73,3.0365]
[1729530082480,3.0359,164.77,164.68,3.8626]
[1729530082689,3.0359,164.77,164.74,3.0364]
[1729530083186,7.75688531,164.78,164.68,3.8626]
[1729530083390,2.99688531,164.78,164.68,3.8626]
[1729530083691,4.76,164.77,164.68,3.8626]
[1729530083890,1.293,164.85,164.68,3.8626]
[1729530084082,3.01893857,164.83,164.68,3.8626]
[1729530084389,68.2719,164.91,164.83,3.0347]
[1729530084390,4.76,164.84,164.83,3.0347]
[1729530084588,3.09640957,164.85,164.83,3.0347]
[1729530084885,4.76,164.86,164.76,7.73822831]
[1729530085084,4.76,164.86,164.77,3.8384]
[1729530085482,4.76,164.86,164.81,3.0351]
[1729530086088,4.76,164.86,164.77,3.8384]
[1729530086284,3.0345,164.85,164.8,3.0353]
[1729530086485,6.04844931,164.85,164.8,3.0353]
[1729530086888,3.0351,164.82,164.77,3.0357]
[1729530087086,4.76,164.81,164.71,3.8384]
[1729530087290,4.76,164.8,164.71,3.8384]
[1729530087595,4.76,164.8,164.74,3.0363]
[1729530087596,3.0356,164.79,164.74,3.0363]
[1729530089000,4.76,164.8,164.77,3.0358]
[1729530089800,4.76,164.8,164.71,3.8384]
[1729530090503,3.0352,164.81,164.71,3.8384]
[1729530090807,4.76,164.8,164.71,3.8384]
[1729530091703,4.76,164.8,164.77,3.0358]
[1729530092199,4.76,164.8,164.71,3.8384]
[1729530093300,3.0357,164.78,164.74,3.0363]
[1729530094501,4.76,164.8,164.71,3.8384]
[1729530094708,7.7955,164.8,164.71,3.8384]
[1729530095506,7.7955,164.8,164.76,3.0359]
[1729530099902,3.0349,164.82,164.71,3.8384]
[1729530100100,4.76,164.81,164.72,4.76]
[1729530101502,4.76,164.81,164.78,3.0355]
[1729530101800,4.76,164.81,164.72,4.76]
[1729530102209,7.7952,164.81,164.78,3.0356]
[1729530102404,3.0352,164.81,164.78,3.0356]
[1729530102703,4.76,164.83,164.78,3.0356]
[1729530103704,4.76,164.83,164.71,3.8384]
[1729530104109,1.3555,164.82,164.71,3.8384]
[1729530104613,3.0359,164.77,164.71,3.8384]
[1729530104908,3.04960743,164.76,164.71,3.8384]
[1729530105116,3.04960743,164.76,164.73,3.0365]
[1729530106201,3.04960743,164.76,164.74,3.0364]
[1729530109009,3.04960743,164.76,164.71,3.8384]
[1729530109211,4.76,164.79,164.71,3.8384]
[1729530109406,4.76,164.79,164.71,8.5984]
[1729530109604,4.76,164.79,164.78,3.0357]
[1729530109808,4.76,164.82,164.71,8.5984]
[1729530110716,4.76,164.82,164.72,6.0735]
[1729530112117,4.76,164.82,164.75,3.0362]
[1729530112313,4.76,164.82,164.72,6.0735]
[1729530113517,4.76,164.82,164.81,3.0351]
[1729530114411,4.76,164.82,164.79,3.0353]
[1729530115021,4.76,164.82,164.8,3.0353]
[1729530115425,4.76,164.83,164.72,6.0735]
[1729530115719,4.76,164.83,164.81,3.035]
[1729530116214,4.76,164.84,164.82,3.0347]
[1729530116416,4.76,164.84,164.75,4.76]
[1729530116614,7.78682988,164.84,164.77,3.8777]
[1729530116812,7.78682988,164.84,164.82,3.0348]
[1729530117012,7.78682988,164.84,164.77,6.83983845]
[1729530117317,7.78682988,164.84,164.82,3.0348]
[1729530119511,3.0349,164.83,164.79,3.0353]
[1729530120019,3.0349,164.83,164.73,4.74]
[1729530120218,3.0349,164.83,164.8,3.0353]
[1729530120416,7.78682988,164.84,164.72,4.74]
[1729530120616,7.78682988,164.84,164.76,3.036]
[1729530120617,2.4855,164.83,164.76,3.036]
[1729530121224,3.0354,164.8,164.76,3.036]
[1729530121425,4.74,164.79,164.7,8.6296]
[1729530121620,7.7755,164.79,164.76,3.036]
[1729530122128,4.74,164.79,164.76,3.036]
[1729530123722,4.74,164.79,164.7,8.6296]
[1729530126024,4.74,164.79,164.78,3.0357]
[1729530126826,4.74,164.79,164.7,8.6296]
[1729530127225,4.74,164.79,164.77,3.0358]
[1729530127428,4.74,164.79,164.7,8.6296]
[1729530127822,4.74,164.79,164.78,3.0357]
[1729530130922,4.74,164.79,164.77,3.0357]
[1729530131122,4.74,164.79,164.7,8.6296]
[1729530131425,3.0358,164.78,164.74,3.0363]
[1729530131747,4.74,164.79,164.7,3.8896]
[1729530132120,4.74,164.81,164.7,3.8896]
[1729530132727,4.74,164.81,164.8,3.0353]
[1729530133326,4.74,164.81,164.73,4.74]
[1729530133924,4.74,164.81,164.79,3.0355]
[1729530134131,4.74,164.81,164.71,6.0738]
[1729530134329,4.74,164.81,164.7,3.8896]
[1729530134526,3.0356,164.79,164.75,3.0361]
[1729530134836,4.74,164.81,164.7,3.8896]
[1729530135933,3.0355,164.79,164.75,3.0362]
[1729530136433,3.0354,164.8,164.75,3.0362]
[1729530137530,3.0355,164.8,164.7,3.8896]
[1729530137737,4.74,164.79,164.7,3.8896]
[1729530138133,4.74,164.79,164.75,3.036]
[1729530138342,4.74,164.79,164.7,3.8896]
[1729530138730,4.74,164.79,164.75,3.0361]
[1729530139129,4.74,164.79,164.76,3.0359]
[1729530140238,4.74,164.79,164.7,9.9639]
[1729530140932,2.4855,164.83,164.78,3.0357]
[1729530141140,4.74,164.82,164.7,3.8896]
[1729530141441,3.02682988,164.84,164.7,3.8896]
[1729530141634,1.2786,164.86,164.7,3.8896]
[1729530141837,4.74,164.85,164.7,3.8896]
[1729530142034,2.96463185,164.84,164.7,3.8896]
[1729530142335,2.5962,164.87,164.7,3.8896]
[1729530142537,4.74,164.86,164.7,3.8896]
[1729530142732,2.97283235,164.85,164.74,3.0363]
[1729530143039,2.97283235,164.85,164.75,10.8124]
[1729530143333,2.97283235,164.85,164.84,3.0346]
[1729530143532,4.74,164.86,164.84,3.0346]
[1729530143735,4.74,164.86,164.76,2.6078]
[1729530144035,4.74,164.86,164.85,3.0344]
[1729530145439,89.98931863,164.9,164.86,3.0341]
[1729530145738,4.74,164.89,164.86,3.0341]
[1729530145931,4.74,164.88,164.86,3.0341]
[1729530147831,4.74,164.88,164.87,3.034]
[1729530149941,4.74,164.92,164.79,4.74]
[1729530150343,4.74,164.92,164.9,3.0334]
[1729530150639,4.74,164.92,164.83,4.74]
[1729530150839,4.74,164.92,164.9,3.0334]
[1729530151841,2.6598,164.93,164.9,3.0334]
[1729530152040,7.3998,164.93,164.9,3.0334]
[1729530153437,7.3998,164.93,164.83,4.74]
[1729530153643,7.3998,164.93,164.91,3.0331]
[1729530154845,2.6598,164.93,164.91,3.0331]
[1729530155047,7.3998,164.93,164.91,3.0331]
[1729530157244,7.3998,164.93,164.84,1.3143]
[1729530157245,10.4328,164.93,164.9,3.0334]
[1729530157437,7.3998,164.93,164.9,3.0334]
[1729530157641,7.3998,164.93,164.84,1.3143]
[1729530158250,7.3998,164.93,164.82,2.5719]
[1729530158443,10.4328,164.93,164.88,3.0337]
[1729530160052,3.0331,164.92,164.89,3.0336]
[1729530160845,10.4328,164.93,164.89,3.0336]
[1729530161239,10.4328,164.93,164.82,7.3119]
[1729530161448,10.4328,164.93,164.9,3.0334]
[1729530164243,7.3998,164.93,164.91,3.0331]
[1729530166351,7.3998,164.93,164.82,7.3119]
[1729530166654,7.3998,164.93,164.83,6.0695]
[1729530166843,7.3998,164.93,164.82,7.3119]
[1729530167044,7.3998,164.93,164.85,3.0343]
[1729530167248,7.3998,164.93,164.84,6.0691]
[1729530169057,7.3998,164.93,164.9,3.0333]
[1729530169954,7.3998,164.93,164.91,3.0332]
[1729530171652,7.3998,164.93,164.92,3.0331]
[1729530172357,4.74,164.93,164.92,3.0331]
[1729530173455,7.8404986,164.94,164.93,3.0329]
[1729530176061,3.1004986,164.94,164.93,3.0329]
[1729530176260,3.1004986,164.94,164.85,1.3522]
[1729530176261,4.74,164.98,164.97,3.0322]
[1729530176458,7.70332767,164.98,164.97,3.0322]
[1729530176653,7.70332767,164.98,164.87,3.05199229]
[1729530176654,77.0,165.03,164.92,4.74]
[1729530176863,77.0,165.03,165.01,3.0313]
[1729530177363,79.98735972,165.03,165.01,3.0313]
[1729530178364,79.98735972,165.03,165.02,3.0313]
[1729530178564,79.98735972,165.03,164.93,1.3029]
[1729530178565,79.98735972,165.03,164.94,4.74]
[1729530179168,79.98735972,165.03,165.0,3.0315]
[1729530179359,79.98735972,165.03,164.94,4.74]
[1729530179765,79.98735972,165.03,165.0,3.0315]
[1729530180159,79.98735972,165.03,164.94,4.74]
[1729530180366,83.01855972,165.03,164.98,3.0318]
[1729530181570,83.01855972,165.03,164.99,3.0318]
[1729530186366,79.98735972,165.03,164.99,3.0318]
[1729530186564,83.01845972,165.03,164.99,3.0318]
[1729530187267,79.98735972,165.03,165.02,3.0313]
[1729530187867,79.98735972,165.03,165.01,3.0314]
[1729530188167,79.98735972,165.03,164.94,4.72]
[1729530188767,79.98735972,165.03,164.93,6.0229]
[1729530189166,79.98735972,165.03,164.99,3.0317]
[1729530189869,83.01855972,165.03,164.99,3.0317]
[1729530190874,3.0313,165.02,164.98,3.0319]
[1729530193073,3.0313,165.02,164.93,6.0229]
[1729530193273,3.0313,165.02,164.99,3.0318]
[1729530195571,79.98735972,165.03,164.96,3.0324]
[1729530196174,3.0317,165.0,164.96,3.0324]
[1729530196375,4.72,164.99,164.96,3.0324]
[1729530196672,4.72,164.99,164.97,3.0322]
[1729530200178,4.72,164.99,164.89,7.3256]
[1729530200477,4.72,164.99,164.89,2.6056]
[1729530200878,3.0323,164.97,164.93,3.0328]
[1729530201081,4.72,164.99,164.89,2.6056]
[1729530202183,3.0322,164.97,164.93,3.0329]
[1729530203682,3.0322,164.97,164.94,3.0327]
[1729530204086,22.1011,164.98,164.87,1.286]
[1729530204291,40.3411,164.98,164.82,6.0699]
[1729530204473,40.3411,164.98,164.82,10.7899]
[1729530204679,3.0332,164.92,164.82,6.0699]
[1729530204877,4.72,164.91,164.82,10.7899]
[1729530205477,7.74923435,164.91,164.88,3.0337]
[1729530205785,7.74923435,164.91,164.82,10.7899]
[1729530206880,7.74923435,164.91,164.88,3.0336]
[1729530207187,7.74923435,164.91,164.82,10.7899]
[1729530207689,7.74923435,164.91,164.84,3.0344]
[1729530207989,7.74923435,164.91,164.82,10.7899]
[1729530209188,7.74923435,164.91,164.83,6.0695]
[1729530209586,7.74923435,164.91,164.9,3.0335]
[1729530210389,4.72,164.93,164.92,3.033]
[1729530210589,7.7835391,164.93,164.92,3.033]
[1729530211785,3.0635391,164.93,164.92,3.033]
[1729530212090,18.24,165.07,164.86,4.72]
[1729530212091,4.72,164.96,164.86,4.72]
[1729530212391,4.72,164.96,164.87,4.0093]
[1729530212691,4.72,164.96,164.95,3.0325]
[1729530214287,4.72,164.96,164.94,3.0327]
[1729530214694,7.80464252,164.96,164.83,1.3015]
[1729530214889,1.2259,164.95,164.83,1.3015]
[1729530215083,3.0336,164.9,164.85,3.0344]
[1729530215286,4.72,164.89,164.85,3.0344]
[1729530215886,4.72,164.89,164.86,3.0341]
[1729530216089,4.72,164.89,164.83,1.3015]
[1729530217590,4.72,164.89,164.86,3.0342]
[1729530217788,4.72,164.89,164.83,1.3015]
[1729530218391,4.72,164.89,164.85,3.0343]
[1729530218893,4.72,164.89,164.79,7.3129]
[1729530218894,7.7537,164.89,164.84,3.0344]
[1729530219195,7.7537,164.89,164.79,8.6077]
[1729530219492,7.7537,164.89,164.84,3.0344]
[1729530219696,4.72,164.89,164.79,3.8877]
[1729530220094,4.72,164.89,164.79,8.6077]
[1729530220994,4.72,164.89,164.86,3.0342]
[1729530222695,4.72,164.89,164.86,3.0341]
[1729530224202,4.72,164.89,164.79,8.6077]
[1729530224400,7.7537,164.89,164.79,8.6077]
[1729530224802,7.7537,164.89,164.84,3.0344]
[1729530225100,4.72,164.89,164.84,3.0344]
[1729530225299,4.72,164.89,164.83,3.0346]
[1729530226401,3.0341,164.87,164.83,3.0346]
[1729530226601,3.01728458,164.87,164.79,3.8877]
[1729530226798,4.72,164.89,164.79,3.8877]
[1729530227002,1.3136,164.88,164.79,3.8877]
[1729530227194,3.0345,164.85,164.79,3.8877]
[1729530227391,4.72,164.84,164.79,2.5929]
[1729530227597,4.72,164.84,164.78,101.63187559]
[1729530228906,4.72,164.84,164.74,2.521]
[1729530229108,7.71530957,164.84,164.75,3.05785735]
[1729530229403,4.72,164.84,164.74,2.521]
[1729530229601,7.82461636,164.84,164.75,3.0979365]
[1729530229824,7.82461636,164.84,164.77,3.0357]
[1729530230010,7.82461636,164.84,164.75,3.0979365]
[1729530230518,3.0352,164.81,164.76,3.0359]
[1729530230722,4.72,164.8,164.76,3.0359]
[1729530230921,4.72,164.79,164.76,3.0359]
[1729530232618,7.77191985,164.79,164.76,3.0359]
[1729530239026,7.77191985,164.79,164.71,1.2882]
[1729530240623,7.77191985,164.79,164.76,3.0359]
[1729530242522,7.77191985,164.79,164.71,1.2882]
[1729530242523,10.80751985,164.79,164.75,3.0362]
[1729530246623,7.77191985,164.79,164.71,1.2882]
[1729530247026,7.77191985,164.79,164.69,2.4839]
[1729530247228,3.0361,164.76,164.72,3.0366]
[1729530247428,4.72,164.75,164.72,3.0366]
[1729530248130,3.0366,164.73,164.69,3.0372]
[1729530249428,3.0365,164.74,164.7,3.0371]
[1729530250633,7.7563,164.75,164.67,1.2355]
[1729530251238,7.7563,164.75,164.64,3.0381]
[1729530251239,3.0374,164.69,164.64,3.0381]
[1729530251439,4.72,164.68,164.56,2.97992833]
[1729530251640,4.72,164.68,164.54,1.2518]
[1729530252330,4.72,164.68,164.61,3.0387]
[1729530252738,3.0378,164.67,164.61,3.0387]
[1729530253938,4.72,164.68,164.61,3.0387]
[1729530254134,3.0379,164.66,164.61,3.0387]
[1729530254337,3.07700814,164.66,164.54,1.2518]
[1729530254531,4.72,164.68,164.54,1.2518]
[1729530254532,3.0387,164.62,164.54,1.2518]
[1729530254736,4.72,164.61,164.54,1.2518]
[1729530255445,4.72,164.61,164.57,3.0394]
[1729530255741,4.72,164.61,164.54,1.2518]
[1729530256240,4.72,164.65,164.54,5.9718]
[1729530256445,2.97366103,164.67,164.54,8.95913932]
[1729530256637,4.72,164.66,164.54,8.95913932]
[1729530256943,3.00314535,164.65,164.54,8.95913932]
[1729530257141,4.72,164.66,164.54,8.95913932]
[1729530257537,4.72,164.65,164.54,8.95913932]
[1729530257744,3.0375,164.68,164.63,3.0384]
[1729530257945,4.72,164.67,164.63,3.0384]
[1729530258444,7.82752612,164.66,164.64,3.0382]
[1729530258638,4.72,164.66,164.54,8.95913932]
[1729530258840,7.80260026,164.66,164.54,8.95913932]
[1729530260646,7.80260026,164.66,164.62,3.0384]
[1729530261952,3.08260026,164.66,164.54,8.95913932]
[1729530262150,4.72,164.66,164.64,3.0381]
[1729530262357,7.71992343,164.66,164.64,3.0381]
[1729530264652,2.99992343,164.66,164.64,3.0381]
[1729530264861,4.72,164.66,164.64,3.0381]
[1729530265054,7.8044241,164.66,164.64,3.0381]
[1729530265747,1.3591,164.71,164.58,4.72]
[1729530266065,4.39853595,164.71,164.59,2.602]
[1729530266255,4.72,164.7,164.59,2.602]
[1729530266559,4.72,164.69,164.66,3.0377]
[1729530268561,4.72,164.68,164.66,3.0377]
[1729530270357,4.72,164.68,164.6,1.2356]
[1729530271356,4.72,164.67,164.64,3.0381]
[1729530272456,4.72,164.67,164.6,1.2356]
[1729530274164,4.72,164.67,164.65,3.038]
[1729530278471,4.72,164.67,164.6,1.2356]
[1729530279061,3.0382,164.65,164.61,3.0387]
[1729530280261,3.0381,164.65,164.6,4.2744]
[1729530280570,3.0381,164.65,164.6,1.2356]
[1729530281966,7.7578,164.67,164.6,1.2356]
[1729530282563,7.7578,164.67,164.62,3.0385]
[1729530282964,3.0379,164.66,164.62,3.0385]
[1729530288273,7.7578,164.67,164.63,3.0383]
[1729530288467,7.7578,164.67,164.6,1.2356]
[1729530289171,7.7578,164.67,164.63,3.0383]
[1729530289871,4.72,164.67,164.6,1.2356]
[1729530290468,7.7577,164.67,164.64,3.0382]
[1729530290772,7.7577,164.67,164.6,1.2356]
[1729530291176,7.7577,164.67,164.63,3.0383]
[1729530294179,7.7577,164.67,164.6,1.2356]
[1729530294379,7.7577,164.67,164.64,3.0382]
[1729530294877,4.39853595,164.71,164.67,3.0377]
[1729530295180,4.72,164.7,164.6,1.2356]
[1729530295577,4.72,164.7,164.68,3.0374]
[1729530295780,4.39853595,164.71,164.68,3.0374]
[1729530296079,4.72,164.7,164.68,3.0374]
[1729530296473,4.72,164.7,164.6,1.2356]
[1729530296784,4.72,164.7,164.69,3.0373]
[1729530297279,4.72,164.7,164.68,3.0374]
[1729530300478,4.72,164.7,164.62,6.0772]
[1729530300780,4.72,164.7,164.67,3.0376]
[1729530301977,4.72,164.7,164.6,1.2356]
[1729530302573,3.0378,164.67,164.63,3.0383]
[1729530302882,4.72,164.66,164.6,1.2356]
[1729530303278,4.72,164.69,164.65,3.0381]
[1729530303481,2.5317,164.75,164.63,7.72350598]
[1729530303684,4.72,164.74,164.63,4.72]
[1729530303888,4.72,164.74,164.63,7.71438787]
[1729530304077,7.7565,164.74,164.63,7.71438787]
[1729530305083,3.0366,164.73,164.69,3.0372]
[1729530305285,3.06368552,164.72,164.69,3.0372]
[1729530306280,3.06368552,164.72,164.7,3.0371]
[1729530306484,4.72,164.73,164.63,7.71438787]
[1729530306794,2.99706737,164.72,164.69,3.0371]
[1729530307290,2.99706737,164.72,164.63,7.71438787]
[1729530307995,1.2919,164.75,164.63,7.71438787]
[1729530308187,4.72,164.74,164.64,6.0765]
[1729530308383,4.72,164.75,164.65,1.3478]
[1729530308587,3.0358,164.78,164.74,3.0364]
[1729530308888,4.72,164.77,164.68,4.72]
[1729530309081,4.72,164.77,164.75,3.0361]
[1729530309485,5.6177,164.8,164.68,4.72]
[1729530309486,4.3364,164.8,164.68,4.72]
[1729530309793,6.12811813,164.82,164.77,3.0358]
[1729530309986,4.72,164.81,164.77,3.0358]
[1729530311093,4.72,164.8,164.77,3.0358]
[1729530311297,4.72,164.8,164.72,4.72]
[1729530311592,4.72,164.82,164.79,3.0355]
[1729530312491,4.72,164.82,164.78,3.0356]
[1729530314089,4.72,164.82,164.79,3.0354]
[1729530314894,4.72,164.82,164.8,3.0353]
[1729530315092,4.72,164.82,164.73,3.8099]
[1729530315299,7.74259893,164.84,164.82,3.0348]
[1729530315592,7.74259893,164.84,164.73,3.8099]
[1729530315593,4.72,164.85,164.76,4.72]
[1729530317002,4.72,164.85,164.83,3.0346]
[1729530317201,4.72,164.85,164.76,4.72]
[1729530317495,4.72,164.85,164.77,4.72]
[1729530317701,4.72,164.85,164.76,4.72]
[1729530319005,4.72,164.85,164.82,3.0349]
[1729530321903,4.72,164.85,164.82,2.5349]
[1729530325998,3.0342,164.86,164.82,2.5349]
[1729530326199,4.72,164.85,164.82,2.5349]
[1729530331424,4.22285569,164.88,164.76,4.72]
[1729530331425,2.96445569,164.88,164.76,4.72]
[1729530331715,4.72,164.87,164.85,3.0343]
[1729530331911,7.69745448,164.87,164.85,3.0343]
[1729530332411,2.97745448,164.87,164.85,3.0343]
[1729530332613,4.72,164.88,164.85,3.0343]
[1729530333211,2.97715087,164.87,164.85,3.0343]
[1729530335909,2.97715087,164.87,164.77,6.0716]
[1729530336114,3.0337,164.89,164.8,4.72]
[1729530336115,4.72,164.89,164.8,4.72]
[1729530336319,3.09111876,164.88,164.81,6.97258266]
[1729530336617,3.09111876,164.88,164.87,3.0339]
[1729530336916,3.09111876,164.88,164.81,3.9607]
[1729530337218,3.09111876,164.88,164.86,3.0341]